fUSD/lending_fUSD_20250217
["ID","MTS","AMOUNT","RATE_DAILY","PERIOD"]
[353360029,1739795448067,-1000.11,0.00013698,2]
[353360030,1739795448078,-500.0,0.00013698,2]
[353360031,1739795448088,-659.71,0.00013698,2]
[353360032,1739795448098,-500.0,0.00013698,2]
[353360033,1739795448108,-500.0,0.00013698,2]
[353360034,1739795448118,-500.0,0.00013698,2]
[353360035,1739795448128,-500.0,0.00013698,2]
[353360036,1739795448138,-500.0,0.00013698,2]
[353360037,1739795448147,-500.0,0.00013698,2]
[353360038,1739795448157,-500.0,0.00013698,2]
[353360039,1739795448166,-156.346114,0.00013698,2]
[353360040,1739795448175,-500.0,0.00013698,2]
[353360041,1739795448186,-819.26,0.00013698,2]
[353360042,1739795448195,-500.0,0.00013698,2]
[353360043,1739795448206,-509.83377928,0.00013698,2]
[353360044,1739795448216,-754.73,0.00013698,2]
[353360045,1739795448225,-500.0,0.00013698,2]
[353360046,1739795448235,-508.21297476,0.00013698,2]
[353360047,1739795448245,-500.0,0.00013698,2]
[353360048,1739795448255,-616.78073685,0.00013698,2]
[353360049,1739795448269,-500.0,0.00013698,2]
[353360050,1739795448279,-500.0,0.00013698,2]
[353360051,1739795448290,-500.0,0.00013698,2]
[353360052,1739795448299,-500.0,0.00013698,2]
[353360053,1739795448309,-500.0,0.00013698,2]
[353360054,1739795448321,-552.47,0.00013698,2]
[353360055,1739795448338,-500.0,0.00013698,2]
[353360056,1739795448350,-500.0,0.00013698,2]
[353360057,1739795448363,-505.33835467,0.00013698,2]
[353360058,1739795448374,-500.0,0.00013698,2]
[353360059,1739795448385,-500.0,0.00013698,2]
[353360060,1739795448396,-500.0,0.00013698,2]
[353360061,1739795448406,-500.0,0.00013698,2]
[353360062,1739795448416,-500.0,0.00013698,2]
[353360063,1739795448427,-500.0,0.00013698,2]
[353360064,1739795448438,-500.0,0.00013698,2]
[353360065,1739795448448,-500.0,0.00013698,2]
[353360066,1739795448459,-500.0,0.00013698,2]
[353360067,1739795448469,-500.0,0.00013698,2]
[353360068,1739795448480,-500.0,0.00013698,2]
[353360069,1739795448491,-500.0,0.00013698,2]
[353360070,1739795448502,-500.0,0.00013698,2]
[353360071,1739795448512,-500.0,0.00013698,2]
[353360072,1739795448522,-500.0,0.00013698,2]
[353360073,1739795448533,-500.0,0.00013698,2]
[353360074,1739795448543,-500.0,0.00013698,2]
[353360075,1739795448554,-500.0,0.00013698,2]
[353360076,1739795448565,-505.55222749,0.00013698,2]
[353360077,1739795448575,-500.0,0.00013698,2]
[353360078,1739795448587,-500.0,0.00013698,2]
[353360079,1739795448597,-644.49,0.00013698,2]
[353360080,1739795448607,-546.8,0.00013698,2]
[353360081,1739795448617,-500.0,0.00013698,2]
[353360082,1739795448627,-500.0,0.00013698,2]
[353360083,1739795448637,-508.02976982,0.00013698,2]
[353360084,1739795448647,-500.0,0.00013698,2]
[353360085,1739795448658,-500.0,0.00013698,2]
[353360086,1739795448669,-500.0,0.00013698,2]
[353360087,1739795448680,-500.0,0.00013698,2]
[353360088,1739795448690,-500.0,0.00013698,2]
[353360089,1739795448700,-626.22,0.00013698,2]
[353360090,1739795448709,-504.94116391,0.00013698,2]
[353360091,1739795448719,-500.0,0.00013698,2]
[353360092,1739795448728,-500.0,0.00013698,2]
[353360093,1739795448737,-500.0,0.00013698,2]
[353360094,1739795448746,-500.0,0.00013698,2]
[353360095,1739795448756,-500.0,0.00013698,2]
[353360096,1739795448765,-500.0,0.00013698,2]
[353360097,1739795448774,-515.95552488,0.00013698,2]
[353360098,1739795448784,-500.0,0.00013698,2]
[353360099,1739795448793,-500.0,0.00013698,2]
[353360100,1739795448802,-500.0,0.00013698,2]
[353360101,1739795448812,-500.0,0.00013698,2]
[353360102,1739795448823,-505.12822796,0.00013698,2]
[353360103,1739795448836,-500.0,0.00013698,2]
[353360104,1739795448846,-500.0,0.00013698,2]
[353360105,1739795448858,-500.0,0.00013698,2]
[353360106,1739795448868,-500.0,0.00013698,2]
[353360107,1739795448879,-504.68039167,0.00013698,2]
[353360108,1739795448889,-500.0,0.00013698,2]
[353360109,1739795448900,-500.0,0.00013698,2]
[353360110,1739795448910,-500.0,0.00013698,2]
[353360111,1739795448920,-502.51674574,0.00013698,2]
[353360112,1739795448934,-500.0,0.00013698,2]
[353360113,1739795448944,-500.0,0.00013698,2]
[353360114,1739795448954,-500.0,0.00013698,2]
[353360115,1739795448964,-500.0,0.00013698,2]
[353360116,1739795448975,-500.0,0.00013698,2]
[353360117,1739795448985,-500.0,0.00013698,2]
[353360118,1739795448995,-500.0,0.00013698,2]
[353360119,1739795449007,-500.0,0.00013698,2]
[353360120,1739795449017,-819.64,0.00013698,2]
[353360121,1739795449027,-500.0,0.00013698,2]
[353360122,1739795449038,-500.0,0.00013698,2]
[353360123,1739795449048,-500.0,0.00013698,2]
[353360124,1739795449058,-500.0,0.00013698,2]
[353360125,1739795449069,-500.0,0.00013698,2]
[353360126,1739795449082,-500.0,0.00013698,2]
[353360127,1739795449094,-500.0,0.00013698,2]
[353360128,1739795449104,-500.0,0.00013698,2]
[353360129,1739795449114,-516.95,0.00013698,2]
[353360130,1739795449130,-500.0,0.00013698,2]
[353360131,1739795449140,-500.0,0.00013698,2]
[353360132,1739795449150,-500.0,0.00013698,2]
[353360133,1739795449161,-500.0,0.00013698,2]
[353360134,1739795449171,-500.0,0.00013698,2]
[353360135,1739795449182,-500.0,0.00013698,2]
[353360136,1739795449192,-1279.98,0.00013698,2]
[353360137,1739795449203,-500.0,0.00013698,2]
[353360138,1739795449212,-258.3361084,0.00013698,2]
[353360139,1739795449222,-500.0,0.00013698,2]
[353360140,1739795449232,-500.0,0.00013698,2]
[353360141,1739795449242,-509.00009228,0.00013698,2]
[353360142,1739795449252,-588.91,0.00013698,2]
[353360143,1739795449263,-500.0,0.00013698,2]
[353360144,1739795449273,-890.63,0.00013698,2]
[353360145,1739795449283,-501.21800877,0.00013698,2]
[353360146,1739795449294,-500.0,0.00013698,2]
[353360147,1739795449305,-500.0,0.00013698,2]
[353360148,1739795449315,-500.0,0.00013698,2]
[353360149,1739795449325,-500.0,0.00013698,2]
[353360150,1739795449336,-500.0,0.00013698,2]
[353360151,1739795449347,-500.0,0.00013698,2]
[353360152,1739795449357,-500.0,0.00013698,2]
[353360153,1739795449367,-500.0,0.00013698,2]
[353360154,1739795449377,-500.0,0.00013698,2]
[353360155,1739795449387,-500.0,0.00013698,2]
[353360156,1739795449397,-500.0,0.00013698,2]
[353360157,1739795449407,-500.60205702,0.00013698,2]
[353360158,1739795449418,-500.0,0.00013698,2]
[353360159,1739795449428,-1453.89,0.00013698,2]
[353360160,1739795449439,-500.0,0.00013698,2]
[353360161,1739795449450,-502.63562985,0.00013698,2]
[353360162,1739795449460,-500.0,0.00013698,2]
[353360163,1739795449470,-937.76,0.00013698,2]
[353360164,1739795449480,-500.0,0.00013698,2]
[353360165,1739795449490,-500.0,0.00013698,2]
[353360166,1739795449500,-1040.65,0.00013698,2]
[353360167,1739795449510,-500.0,0.00013698,2]
[353360168,1739795449520,-500.0,0.00013698,2]
[353360169,1739795449530,-530.40543059,0.00013698,2]
[353360170,1739795449540,-500.0,0.00013698,2]
[353360171,1739795449550,-500.0,0.00013698,2]
[353360172,1739795449559,-500.0,0.00013698,2]
[353360173,1739795449570,-500.0,0.00013698,2]
[353360174,1739795449581,-500.0,0.00013698,2]
[353360175,1739795449591,-547.34,0.00013698,2]
[353360176,1739795449602,-500.0,0.00013698,2]
[353360177,1739795449614,-500.0,0.00013698,2]
[353360178,1739795449629,-500.0,0.00013698,2]
[353360179,1739795449639,-500.0,0.00013698,2]
[353360180,1739795449650,-500.0,0.00013698,2]
[353360181,1739795449661,-500.0,0.00013698,2]
[353360182,1739795449671,-991.43,0.00013698,2]
[353360183,1739795449681,-500.0,0.00013698,2]
[353360184,1739795449691,-500.0,0.00013698,2]
[353360185,1739795449700,-497.16831442,0.00013698,2]
[353360186,1739795449710,-500.0,0.00013698,2]
[353360187,1739795449720,-500.57796219,0.00013698,2]
[353360188,1739795449731,-1097.91,0.00013698,2]
[353360189,1739795449740,-258.71386282,0.00013698,2]
[353360190,1739795449750,-500.0,0.00013698,2]
[353360191,1739795449760,-630.95,0.00013698,2]
[353360192,1739795449770,-500.0,0.00013698,2]
[353360193,1739795449780,-1275.17,0.00013698,2]
[353360194,1739795449790,-500.0,0.00013698,2]
[353360195,1739795449799,-500.0,0.00013698,2]
[353360196,1739795449809,-500.0,0.00013698,2]
[353360197,1739795449819,-500.0,0.00013698,2]
[353360198,1739795449829,-632.73045636,0.00013698,2]
[353360199,1739795449839,-500.0,0.00013698,2]
[353360200,1739795449849,-500.0,0.00013698,2]
[353360201,1739795449859,-500.0,0.00013698,2]
[353360202,1739795449869,-500.0,0.00013698,2]
[353360203,1739795449879,-500.0,0.00013698,2]
[353360204,1739795449889,-1170.12,0.00013698,2]
[353360205,1739795449900,-500.0,0.00013698,2]
[353360206,1739795449910,-419.04184834,0.00013698,2]
[353360207,1739795449919,-367.01535664,0.00013698,2]
[353360208,1739795449931,-500.0,0.00013698,2]
[353360209,1739795449942,-500.0,0.00013698,2]
[353360210,1739795449951,-500.0,0.00013698,2]
[353360211,1739795449965,-500.0,0.00013698,2]
[353360212,1739795449975,-500.0,0.00013698,2]
[353360213,1739795449985,-519.76288006,0.00013698,2]
[353360214,1739795449994,-500.0,0.00013698,2]
[353360215,1739795450004,-500.0,0.00013698,2]
[353360216,1739795450015,-500.0,0.00013698,2]
[353360217,1739795450025,-500.0,0.00013698,2]
[353360218,1739795450035,-496.65949136,0.00013698,2]
[353360219,1739795450079,-3.34050864,0.00013698,2]
[353360220,1739795450089,-500.0,0.00013698,2]
[353360221,1739795450098,-417.54759039,0.00013698,2]
[353360222,1739795450111,-98.99457581,0.00013698,2]
[353360223,1739795450121,-590.1,0.00013698,2]
[353360224,1739795450131,-1318.65,0.00013698,2]
[353360225,1739795450141,-500.0,0.00013698,2]
[353360226,1739795450151,-732.04,0.00013698,2]
[353360227,1739795450162,-714.75,0.00013698,2]
[353360228,1739795450172,-500.0,0.00013698,2]
[353360229,1739795450182,-500.0,0.00013698,2]
[353360230,1739795450191,-500.0,0.00013698,2]
[353360231,1739795450201,-1373.96,0.00013698,2]
[353360232,1739795450211,-720.74,0.00013698,2]
[353360233,1739795450221,-545.15,0.00013698,2]
[353360234,1739795450230,-500.0,0.00013698,2]
[353360235,1739795450240,-519.71478754,0.00013698,2]
[353360236,1739795450249,-502.69904213,0.00013698,2]
[353360237,1739795450259,-1045.97,0.00013698,2]
[353360238,1739795450268,-500.0,0.00013698,2]
[353360239,1739795450277,-500.0,0.00013698,2]
[353360240,1739795450286,-1038.49,0.00013698,2]
[353360241,1739795450296,-154.788122,0.00013698,2]
[353360242,1739795450305,-638.95,0.00013698,2]
[353360243,1739795450314,-500.0,0.00013698,2]
[353360244,1739795450324,-503.38150711,0.00013698,2]
[353360245,1739795450334,-500.0,0.00013698,2]
[353360246,1739795450343,-705.71,0.00013698,2]
[353360247,1739795450353,-500.0,0.00013698,2]
[353360248,1739795450362,-749.76,0.00013698,2]
[353360249,1739795450372,-635.99,0.00013698,2]
[353360250,1739795450381,-500.0,0.00013698,2]
[353360251,1739795450391,-504.11760088,0.00013698,2]
[353360252,1739795450401,-1315.36,0.00013698,2]
[353360253,1739795450410,-500.0,0.00013698,2]
[353360254,1739795450420,-156.346114,0.00013698,2]
[353360255,1739795450430,-1391.81,0.00013698,2]
[353360256,1739795450440,-593.4,0.00013698,2]
[353360257,1739795450450,-500.0,0.00013698,2]
[353360258,1739795450459,-500.0,0.00013698,2]
[353360259,1739795450468,-520.63,0.00013698,2]
[353360260,1739795450478,-882.11,0.00013698,2]
[353360261,1739795450487,-500.0,0.00013698,2]
[353360262,1739795450496,-500.0,0.00013698,2]
[353360263,1739795450505,-500.0,0.00013698,2]
[353360264,1739795450515,-500.0,0.00013698,2]
[353360265,1739795450524,-1009.86,0.00013698,2]
[353360266,1739795450533,-500.0,0.00013698,2]
[353360267,1739795450543,-657.26,0.00013698,2]
[353360268,1739795450553,-500.0,0.00013698,2]
[353360269,1739795450562,-500.0,0.00013698,2]
[353360270,1739795450572,-500.0,0.00013698,2]
[353360271,1739795450582,-500.0,0.00013698,2]
[353360272,1739795450592,-500.0,0.00013698,2]
[353360273,1739795450602,-723.77,0.00013698,2]
[353360274,1739795450611,-500.0,0.00013698,2]
[353360275,1739795450621,-500.0,0.00013698,2]
[353360276,1739795450630,-500.0,0.00013698,2]
[353360277,1739795450639,-500.0,0.00013698,2]
[353360278,1739795450649,-500.0,0.00013698,2]
[353360279,1739795450658,-500.0,0.00013698,2]
[353360280,1739795450667,-712.18,0.00013698,2]
[353360281,1739795450676,-1002.63,0.00013698,2]
[353360282,1739795450686,-500.0,0.00013698,2]
[353360283,1739795450695,-500.0,0.00013698,2]
[353360284,1739795450704,-898.49,0.00013698,2]
[353360285,1739795450713,-500.0,0.00013698,2]
[353360286,1739795450722,-500.0,0.00013698,2]
[353360287,1739795450732,-500.0,0.00013698,2]
[353360288,1739795450741,-1526.03,0.00013698,2]
[353360289,1739795450751,-522.55,0.00013698,2]
[353360290,1739795450760,-719.03,0.00013698,2]
[353360291,1739795450769,-719.03,0.00013698,2]
[353360292,1739795450779,-719.03,0.00013698,2]
[353360293,1739795450788,-500.0,0.00013698,2]
[353360294,1739795450798,-500.0,0.00013698,2]
[353360295,1739795450809,-561.73,0.00013698,2]
[353360296,1739795450818,-500.0,0.00013698,2]
[353360297,1739795450829,-500.0,0.00013698,2]
[353360298,1739795450838,-1200.0,0.00013698,2]
[353360299,1739795450847,-501.53044048,0.00013698,2]
[353360300,1739795450858,-807.6,0.00013698,2]
[353360301,1739795450868,-500.0,0.00013698,2]
[353360302,1739795450877,-500.0,0.00013698,2]
[353360303,1739795450887,-616.59,0.00013698,2]
[353360304,1739795450896,-824.61,0.00013698,2]
[353360305,1739795450905,-1294.98,0.00013698,2]
[353360306,1739795450915,-500.0,0.00013698,2]
[353360307,1739795450926,-536.15,0.00013698,2]
[353360308,1739795450938,-589.62,0.00013698,2]
[353360309,1739795450950,-500.0,0.00013698,2]
[353360310,1739795450960,-5011.97496772,0.00013698,2]
[353360311,1739795450971,-500.0,0.00013698,2]
[353360312,1739795450982,-502.02589821,0.00013698,2]
[353360313,1739795450992,-508.46,0.00013698,2]
[353360314,1739795451002,-596.0,0.00013698,2]
[353360315,1739795451012,-500.0,0.00013698,2]
[353360316,1739795451021,-1170.33,0.00013698,2]
[353360317,1739795451031,-500.0,0.00013698,2]
[353360318,1739795451042,-500.0,0.00013698,2]
[353360319,1739795451051,-583.93,0.00013698,2]
[353360320,1739795451061,-925.85,0.00013698,2]
[353360321,1739795451071,-1110.63,0.00013698,2]
[353360322,1739795451082,-500.0,0.00013698,2]
[353360323,1739795451092,-500.0,0.00013698,2]
[353360324,1739795451102,-502.47240196,0.00013698,2]
[353360325,1739795451111,-500.0,0.00013698,2]
[353360326,1739795451121,-918.15,0.00013698,2]
[353360327,1739795451130,-500.0,0.00013698,2]
[353360328,1739795451139,-1073.54,0.00013698,2]
[353360329,1739795451149,-500.0,0.00013698,2]
[353360330,1739795451158,-500.0,0.00013698,2]
[353360331,1739795451168,-999.9,0.00013698,2]
[353360332,1739795451178,-1259.76,0.00013698,2]
[353360333,1739795451189,-528.53,0.00013698,2]
[353360334,1739795451199,-500.0,0.00013698,2]
[353360335,1739795451209,-500.0,0.00013698,2]
[353360336,1739795451218,-502.24877568,0.00013698,2]
[353360337,1739795451228,-754.9,0.00013698,2]
[353360338,1739795451238,-500.0,0.00013698,2]
[353360339,1739795451248,-1198.04,0.00013698,2]
[353360340,1739795451257,-1367.33,0.00013698,2]
[353360341,1739795451267,-502.09486548,0.00013698,2]
[353360342,1739795451277,-1374.05,0.00013698,2]
[353360343,1739795451287,-500.0,0.00013698,2]
[353360344,1739795451297,-1062.33,0.00013698,2]
[353360345,1739795451306,-1441.23,0.00013698,2]
[353360346,1739795451315,-500.0,0.00013698,2]
[353360347,1739795451325,-500.0,0.00013698,2]
[353360348,1739795451337,-500.0,0.00013698,2]
[353360349,1739795451349,-795.71,0.00013698,2]
[353360350,1739795451359,-502.79685086,0.00013698,2]
[353360351,1739795451369,-500.0,0.00013698,2]
[353360352,1739795451379,-154.788116,0.00013698,2]
[353360353,1739795451389,-500.0,0.00013698,2]
[353360354,1739795451399,-960.65,0.00013698,2]
[353360355,1739795451408,-500.0,0.00013698,2]
[353360356,1739795451419,-503.70043725,0.00013698,2]
[353360357,1739795451429,-500.0,0.00013698,2]
[353360358,1739795451438,-1611.75,0.00013698,2]
[353360359,1739795451663,-1530.61,0.00013698,2]
[353360360,1739795451675,-500.0,0.00013698,2]
[353360361,1739795451685,-500.0,0.00013698,2]
[353360362,1739795451694,-500.0,0.00013698,2]
[353360363,1739795451704,-500.0,0.00013698,2]
[353360364,1739795451714,-988.39,0.00013698,2]
[353360365,1739795451724,-500.0,0.00013698,2]
[353360366,1739795451733,-500.0,0.00013698,2]
[353360367,1739795451743,-837.25,0.00013698,2]
[353360368,1739795451755,-500.0,0.00013698,2]
[353360369,1739795451764,-929.24,0.00013698,2]
[353360370,1739795451773,-500.0,0.00013698,2]
[353360371,1739795451782,-500.0,0.00013698,2]
[353360372,1739795451792,-780.95,0.00013698,2]
[353360373,1739795451801,-500.0,0.00013698,2]
[353360374,1739795451810,-500.0,0.00013698,2]
[353360375,1739795451820,-500.0,0.00013698,2]
[353360376,1739795451830,-500.0,0.00013698,2]
[353360377,1739795451840,-1339.0,0.00013698,2]
[353360378,1739795451849,-500.0,0.00013698,2]
[353360379,1739795451859,-500.0,0.00013698,2]
[353360380,1739795451868,-500.0,0.00013698,2]
[353360381,1739795451877,-500.0,0.00013698,2]
[353360382,1739795451886,-500.0,0.00013698,2]
[353360383,1739795451896,-1021.61,0.00013698,2]
[353360384,1739795451905,-500.0,0.00013698,2]
[353360385,1739795451914,-1078.4,0.00013698,2]
[353360386,1739795451925,-1021.82,0.00013698,2]
[353360387,1739795451939,-500.0,0.00013698,2]
[353360388,1739795451948,-685.02,0.00013698,2]
[353360389,1739795451958,-500.0,0.00013698,2]
[353360390,1739795451969,-500.0,0.00013698,2]
[353360391,1739795451979,-502.0591427,0.00013698,2]
[353360392,1739795451988,-500.0,0.00013698,2]
[353360393,1739795451998,-500.0,0.00013698,2]
[353360394,1739795452008,-1535.34,0.00013698,2]
[353360395,1739795452017,-500.0,0.00013698,2]
[353360396,1739795452026,-500.0,0.00013698,2]
[353360397,1739795452035,-502.74524634,0.00013698,2]
[353360398,1739795452046,-631.43,0.00013698,2]
[353360399,1739795452054,-693.16,0.00013698,2]
[353360400,1739795452064,-500.0,0.00013698,2]
[353360401,1739795452073,-1060.88,0.00013698,2]
[353360402,1739795452085,-500.0,0.00013698,2]
[353360403,1739795452094,-740.77,0.00013698,2]
[353360404,1739795452103,-500.0,0.00013698,2]
[353360405,1739795452113,-902.46,0.00013698,2]
[353360406,1739795452123,-501.85892391,0.00013698,2]
[353360407,1739795452132,-1161.08,0.00013698,2]
[353360408,1739795452142,-500.0,0.00013698,2]
[353360409,1739795452152,-500.0,0.00013698,2]
[353360410,1739795452161,-1366.52,0.00013698,2]
[353360411,1739795452171,-1053.49,0.00013698,2]
[353360412,1739795452180,-1002.94,0.00013698,2]
[353360413,1739795452190,-639.04518504,0.00013698,2]
[353360414,1739795452199,-500.0,0.00013698,2]
[353360415,1739795452209,-500.0,0.00013698,2]
[353360416,1739795452219,-501.66392689,0.00013698,2]
[353360417,1739795452229,-500.0,0.00013698,2]
[353360418,1739795452238,-500.0,0.00013698,2]
[353360419,1739795452247,-694.51,0.00013698,2]
[353360420,1739795452256,-500.0,0.00013698,2]
[353360421,1739795452265,-500.0,0.00013698,2]
[353360422,1739795452275,-1573.95,0.00013698,2]
[353360423,1739795452285,-732.33,0.00013698,2]
[353360424,1739795452295,-500.0,0.00013698,2]
[353360425,1739795452304,-500.0,0.00013698,2]
[353360426,1739795452314,-845.71,0.00013698,2]
[353360427,1739795452324,-500.0,0.00013698,2]
[353360428,1739795452335,-500.0,0.00013698,2]
[353360429,1739795452344,-500.0,0.00013698,2]
[353360430,1739795452354,-906.89,0.00013698,2]
[353360431,1739795452364,-817.87,0.00013698,2]
[353360432,1739795452373,-979.88,0.00013698,2]
[353360433,1739795452383,-500.0,0.00013698,2]
[353360434,1739795452393,-1519.37,0.00013698,2]
[353360435,1739795452403,-573.36,0.00013698,2]
[353360436,1739795452412,-500.0,0.00013698,2]
[353360437,1739795452421,-500.0,0.00013698,2]
[353360438,1739795452431,-505.26018842,0.00013698,2]
[353360439,1739795452443,-500.0,0.00013698,2]
[353360440,1739795452453,-500.0,0.00013698,2]
[353360441,1739795452462,-500.0,0.00013698,2]
[353360442,1739795452471,-505.32240731,0.00013698,2]
[353360443,1739795452480,-1448.77,0.00013698,2]
[353360444,1739795452491,-570.99,0.00013698,2]
[353360445,1739795452501,-500.0,0.00013698,2]
[353360446,1739795452511,-520.67,0.00013698,2]
[353360447,1739795452521,-500.0,0.00013698,2]
[353360448,1739795452532,-500.0,0.00013698,2]
[353360449,1739795452541,-1528.51,0.00013698,2]
[353360450,1739795452560,-500.0,0.00013698,2]
[353360451,1739795452571,-500.0,0.00013698,2]
[353360452,1739795452582,-500.0,0.00013698,2]
[353360453,1739795452591,-500.0,0.00013698,2]
[353360454,1739795452600,-824.96,0.00013698,2]
[353360455,1739795452610,-500.0,0.00013698,2]
[353360456,1739795452621,-316.29340586,0.00013698,2]
[353360457,1739795452631,-500.0,0.00013698,2]
[353360458,1739795452641,-500.0,0.00013698,2]
[353360459,1739795452651,-500.0,0.00013698,2]
[353360460,1739795452661,-1442.68,0.00013698,2]
[353360461,1739795452671,-1536.81,0.00013698,2]
[353360462,1739795452681,-726.42,0.00013698,2]
[353360463,1739795452691,-500.0,0.00013698,2]
[353360464,1739795452701,-677.33,0.00013698,2]
[353360465,1739795452711,-974.16,0.00013698,2]
[353360466,1739795452720,-177.879398,0.00013698,2]
[353360467,1739795452730,-500.0,0.00013698,2]
[353360468,1739795452740,-500.0,0.00013698,2]
[353360469,1739795452749,-500.0,0.00013698,2]
[353360470,1739795452761,-567.54,0.00013698,2]
[353360471,1739795452771,-1442.71,0.00013698,2]
[353360472,1739795452781,-500.0,0.00013698,2]
[353360473,1739795452792,-787.24,0.00013698,2]
[353360474,1739795452802,-500.0,0.00013698,2]
[353360475,1739795452812,-500.0,0.00013698,2]
[353360476,1739795452822,-189.893697,0.00013698,2]
[353360477,1739795452832,-744.03,0.00013698,2]
[353360478,1739795452841,-500.0,0.00013698,2]
[353360479,1739795452851,-500.0,0.00013698,2]
[353360480,1739795452861,-500.0,0.00013698,2]
[353360481,1739795452871,-959.34,0.00013698,2]
[353360482,1739795452880,-959.34,0.00013698,2]
[353360483,1739795452889,-1462.05,0.00013698,2]
[353360484,1739795452899,-503.50028185,0.00013698,2]
[353360485,1739795452908,-500.0,0.00013698,2]
[353360486,1739795452917,-606.79260012,0.00013698,2]
[353360487,1739795452928,-500.0,0.00013698,2]
[353360488,1739795452939,-725.29,0.00013698,2]
[353360489,1739795452948,-500.0,0.00013698,2]
[353360490,1739795452958,-500.0,0.00013698,2]
[353360491,1739795452969,-500.0,0.00013698,2]
[353360492,1739795452979,-500.0,0.00013698,2]
[353360493,1739795452989,-500.0,0.00013698,2]
[353360494,1739795452999,-1468.43,0.00013698,2]
[353360495,1739795453010,-908.17,0.00013698,2]
[353360496,1739795453022,-500.0,0.00013698,2]
[353360497,1739795453032,-500.0,0.00013698,2]
[353360498,1739795453042,-500.0,0.00013698,2]
[353360499,1739795453051,-500.0,0.00013698,2]
[353360500,1739795453061,-900.85,0.00013698,2]
[353360501,1739795453070,-500.0,0.00013698,2]
[353360502,1739795453080,-500.0,0.00013698,2]
[353360503,1739795453090,-500.0,0.00013698,2]
[353360504,1739795453100,-500.0,0.00013698,2]
[353360505,1739795453109,-500.0,0.00013698,2]
[353360506,1739795453119,-2580.61,0.00013698,2]
[353360507,1739795453128,-1127.25,0.00013698,2]
[353360508,1739795453138,-675.17,0.00013698,2]
[353360509,1739795453148,-500.0,0.00013698,2]
[353360510,1739795453158,-500.0,0.00013698,2]
[353360511,1739795453167,-500.0,0.00013698,2]
[353360512,1739795453177,-1194.61,0.00013698,2]
[353360513,1739795453186,-2416.21,0.00013698,2]
[353360514,1739795453196,-500.0,0.00013698,2]
[353360515,1739795453206,-761.3,0.00013698,2]
[353360516,1739795453215,-1252.72,0.00013698,2]
[353360517,1739795453224,-1252.72,0.00013698,2]
[353360518,1739795453234,-500.0,0.00013698,2]
[353360519,1739795453243,-1558.01,0.00013698,2]
[353360520,1739795453253,-2087.62,0.00013698,2]
[353360521,1739795453262,-500.0,0.00013698,2]
[353360522,1739795453272,-1161.58,0.00013698,2]
[353360523,1739795453281,-504.0569734,0.00013698,2]
[353360524,1739795453291,-177.879398,0.00013698,2]
[353360525,1739795453300,-1728.69,0.00013698,2]
[353360526,1739795453310,-668.31,0.00013698,2]
[353360527,1739795453319,-2449.13,0.00013698,2]
[353360528,1739795453329,-500.0,0.00013698,2]